Workbook

Sheet Sheet1
B1: Kinross Road Runners 2015 Club Championship
E2: Cupar 5 | F2: Cupar 5 | G2: Smokies 10 | H2: Smokies 10 | I2: Alloa Half | J2: Alloa Half | K2: Tay Ten | L2: Tay Ten | M2: Kinross PTA 10k | N2: Glenrothes 10k | O2: BrigBash 5m | P2: BrigBash 5m | Q2: Perth Parkrun | R2: Perth Parkrun | S2: Kn'khill 3.9M | T2: Kn'hill 3.9M | U2: Forfar 10k | V2: Stirling 10k | W2: East Neuk 10k | X2: Kirkcaldy Parkrun | Y2: Kirkcaldy Parkrun | Z2: Neil McCover Half Marathon | AA2: Neil McCover Half | AB2: Number of Races | AC2: Average Time | AD2: No. Races for ranking | AE2: Best 6 Average Time
E3: Actual | F3: 10k Equiv | G3: Actual | H3: 10k Equiv | I3: Actual | J3: 10k Equiv | K3: Actual | L3: 10k Equiv | M3: 10k Equiv | N3: 10k Equiv | O3: Actual | P3: 10k Equiv | Q3: Actual | R3: 10k Equiv | S3: Actual | T3: 10k Equiv | U3: 10k Equiv | V3: 10k Equiv | W3: 10k Equiv | X3: Actual | Y3: 10k Equiv | Z3: Actual | AA3: 10k Equiv
B4: Surname | C4: First | E4: hh:mm:ss | F4: hh:mm:ss | G4: hh:mm:ss | H4: hh:mm:ss | I4: hh:mm:ss | J4: hh:mm:ss | K4: hh:mm:ss | L4: hh:mm:ss | M4: hh:mm:ss | N4: hh:mm:ss | O4: hh:mm:ss | P4: hh:mm:ss | Q4: hh:mm:ss | R4: hh:mm:ss | S4: hh:mm:ss | T4: hh:mm:ss | U4: hh:mm:ss | V4: hh:mm:ss | W4: hh:mm:ss | X4: hh:mm:ss | Y4: hh:mm:ss | Z4: hh:mm:ss | AA4: hh:mm:ss | AC4: hh:mm:ss | AE4: hh:mm:ss
B5: Test | C5: Test | E5: 1.157407407e-05 | F5: =(E5*86400)*POWER((6.2138818/5),1.07)/86400 -> 1.460450191e-05 | G5: 1.157407407e-05 | H5: =(G5*86400)*POWER((6.2138818/10),1.07)/86400 -> 6.956401732e-06 | I5: 1.157407407e-05 | J5: =(I5*86400)*POWER((6.2138818/13.1094),1.07)/86400 -> 5.206801754e-06 | K5: 1.157407407e-05 | L5: =(K5*86400)*POWER((6.2138818/10),1.07)/86400 -> 6.956401732e-06 | M5: 1.157407407e-05 | N5: 1.157407407e-05 | O5: 1.157407407e-05 | P5: =(O5*86400)*POWER((6.2138818/5),1.07)/86400 -> 1.460450191e-05 | Q5: 1.157407407e-05 | R5: =(Q5*86400)*POWER((10/5),1.07)/86400 -> 2.429899731e-05 | S5: 1.157407407e-05 | T5: =(S5*86400)*POWER((6.2138818/3.9),1.07)/86400 -> 1.905221725e-05 | U5: 1.157407407e-05 | V5: 1.157407407e-05 | W5: 1.157407407e-05 | X5: 1.157407407e-05 | Y5: =(X5*86400)*POWER((10/5),1.07)/86400 -> 2.429899731e-05 | Z5: 1.157407407e-05 | AA5: =(Z5*86400)*POWER((6.2138818/13.1094),1.07)/86400 -> 5.206801754e-06 | AB5: =COUNT(F5,H5,J5,L5:N5,R5:R5,P5,T5:V5,W5,Y5,AA5) -> 14 | AC5: =IFERROR(AVERAGE(F5,H5,J5,L5:N5,R5:R5,P5,T5:W5,Y5,AA5),"No race run") -> 1.278971379e-05 | AD5: =IF(COUNT(F5,H5,J5,L5,M5,N5,P5,R5,T5,U5,V5,W5,Y5)>6,6,COUNT(F5,H5,J5,L5,M5,N5,P5,R5,T5,U5,V5,W5,Y5)) -> 6 | AE5: =IFERROR(IF(AB5>6,AVERAGE(SMALL((F5,H5,J5,L5:N5,R5:R5,P5,T5:W5,Y5,AA5),{1,2,3,4,5,6})),AC5),"No race run") -> 7.912425853e-06
B6: Kemp | C6: Allan | D6: M | E6: 0.02002314815 | F6: =(E6*86400)*POWER((6.2138818/5),1.07)/86400 -> 0.02526578831 | I6: 0.05717592593 | J6: =(I6*86400)*POWER((6.2138818/13.1094),1.07)/86400 -> 0.02572160066 | K6: 0.04329861111 | L6: =(K6*86400)*POWER((6.2138818/10),1.07)/86400 -> 0.02602389888 | O6: 00:28:54 | P6: 0.02532420632 | S6: 00:22:18 | T6: =(S6*86400)*POWER((6.2138818/3.9),1.07)/86400 -> 0.02549186668 | V6: 00:37:13 | X6: 0.01260416667 | Y6: 0.02646160807 | Z6: 01:23:52 | AA6: =(Z6*86400)*POWER((6.2138818/13.1094),1.07)/86400 -> 0.02620062642 | AB6: =COUNT(F6,H6,J6,L6:N6,R6:R6,P6,T6:V6,W6,Y6,AA6) -> 8 | AC6: =IFERROR(AVERAGE(F6,H6,J6,L6:N6,R6:R6,P6,T6:W6,Y6,AA6),"No race run") -> 0.02579181284 | AD6: =IF(COUNT(F6,H6,J6,L6,M6,N6,P6,R6,T6,U6,V6,W6,Y6)>6,6,COUNT(F6,H6,J6,L6,M6,N6,P6,R6,T6,U6,V6,W6,Y6)) -> 6 | AE6: =IFERROR(IF(AB6>6,AVERAGE(SMALL((F6,H6,J6,L6:N6,R6:R6,P6,T6:W6,Y6,AA6),{1,2,3,4,5,6})),AC6),"No race run") -> 0.02561204471
B7: Strachan | C7: Scott | D7: M | E7: 0.02185185185 | F7: =(E7*86400)*POWER((6.2138818/5),1.07)/86400 -> 0.02757329961 | I7: 0.06068287037 | J7: =(I7*86400)*POWER((6.2138818/13.1094),1.07)/86400 -> 0.02729926159 | K7: 0.04592592593 | L7: =(K7*86400)*POWER((6.2138818/10),1.07)/86400 -> 0.02760300207 | M7: 00:39:22 | O7: 00:31:02 | P7: 0.02719358256 | Q7: 00:18:56 | R7: =(Q7*86400)*POWER((10/5),1.07)/86400 -> 0.02760366094 | S7: 00:23:56 | T7: =(S7*86400)*POWER((6.2138818/3.9),1.07)/86400 -> 0.02735898397 | U7: 00:40:00 | V7: 00:39:05 | W7: 00:38:55 | X7: 0.01292824074 | Y7: 0.02714197999 | AB7: 11 | AC7: 0.02736874347 | AD7: 6 | AE7: =IFERROR(IF(AB7>6,AVERAGE(SMALL((F7,H7,J7,L7:N7,R7:R7,P7,T7:W7,Y7,AA7),{1,2,3,4,5,6})),AC7),"No race run") -> 0.02718990896
B8: Gordon | C8: Jillian | D8: F | G8: 01:06:25 | H8: =(G8*86400)*POWER((6.2138818/10),1.07)/86400 -> 0.0277212609 | I8: 0.05935185185 | J8: =(I8*86400)*POWER((6.2138818/13.1094),1.07)/86400 -> 0.02670047939 | K8: 01:04:35 | L8: =(K8*86400)*POWER((6.2138818/10),1.07)/86400 -> 0.02695605671 | O8: 00:32:41 | P8: 0.02863942825 | S8: 00:26:31 | T8: =(S8*86400)*POWER((6.2138818/3.9),1.07)/86400 -> 0.03031207764 | U8: 00:42:55 | V8: 00:41:22 | X8: 00:20:02 | Y8: 0.02920739476 | Z8: 01:29:14 | AA8: =(Z8*86400)*POWER((6.2138818/13.1094),1.07)/86400 -> 0.02787721659 | AB8: 9 | AC8: 0.02843822298 | AD8: 6 | AE8: =IFERROR(IF(AB8>6,AVERAGE(SMALL((F8,H8,J8,L8:N8,R8:R8,P8,T8:W8,Y8,AA8),{1,2,3,4,5,6})),AC8),"No race run") -> 0.02777021562
B9: Newton | C9: Matt | D9: M | M9: 0.02761574074 | O9: 00:31:32 | P9: 0.02763171762 | Q9: 0.01310185185 | R9: =(Q9*86400)*POWER((10/5),1.07)/86400 -> 0.02750646495 | U9: 00:42:24 | V9: 00:40:25 | X9: 0.01332175926 | Y9: 0.0279681459 | AB9: 6 | AC9: 0.02803894055 | AD9: 6 | AE9: =IFERROR(IF(AB9>6,AVERAGE(SMALL((F9,H9,J9,L9:N9,R9:R9,P9,T9:W9,Y9,AA9),{1,2,3,4,5,6})),AC9),"No race run") -> 0.02803894055
B10: Kemp | C10: Graham | D10: M | E10: 0.02252314815 | F10: =(E10*86400)*POWER((6.2138818/5),1.07)/86400 -> 0.02842036072 | I10: 0.06319444444 | J10: =(I10*86400)*POWER((6.2138818/13.1094),1.07)/86400 -> 0.02842913757 | M10: 00:40:40 | O10: 00:31:34 | P10: 0.02766092662 | Q10: 00:19:10 | R10: =(Q10*86400)*POWER((10/5),1.07)/86400 -> 0.0279438469 | U10: 00:43:02 | W10: 00:41:00 | X10: 0.01341435185 | Y10: 0.02816253788 | AB10: 8 | AC10: 0.02840175399 | AD10: 6 | AE10: =IFERROR(IF(AB10>6,AVERAGE(SMALL((F10,H10,J10,L10:N10,R10:R10,P10,T10:W10,Y10,AA10),{1,2,3,4,5,6})),AC10),"No race run") -> 0.02814292507
B11: Edgerton | C11: Peter | D11: M | E11: 0.0246412037 | F11: =(E11*86400)*POWER((6.2138818/5),1.07)/86400 -> 0.03109298457 | M11: 0.03215277778 | N11: 00:41:49 | O11: 00:35:05 | P11: 0.03074247653 | Q11: 0.0146412037 | R11: =(Q11*86400)*POWER((10/5),1.07)/86400 -> 0.03073823159 | S11: 00:25:56 | T11: =(S11*86400)*POWER((6.2138818/3.9),1.07)/86400 -> 0.02964525004 | V11: 00:41:22 | W11: 00:42:22 | X11: 0.0140162037 | Y11: 00:42:22.414 | Z11: 01:29:50 | AA11: =(Z11*86400)*POWER((6.2138818/13.1094),1.07)/86400 -> 0.02806466145 | AB11: 10 | AC11: 0.02990499677 | AD11: 6 | AE11: =IFERROR(IF(AB11>6,AVERAGE(SMALL((F11,H11,J11,L11:N11,R11:R11,P11,T11:W11,Y11,AA11),{1,2,3,4,5,6})),AC11),"No race run") -> 0.0290539162
B12: Hill | C12: Martin | D12: M | M12: 00:42:54 | O12: 00:33:07 | P12: 0.0290191453 | Q12: 00:19:54 | R12: =(Q12*86400)*POWER((10/5),1.07)/86400 -> 0.02901300278 | S12: 0.01774305556 | T12: =(S12*86400)*POWER((6.2138818/3.9),1.07)/86400 -> 0.02920704904 | V12: 0.02881944444 | X12: 0.01368055556 | Y12: 0.02872141482 | AB12: 6 | AC12: 0.02909528718 | AD12: 6 | AE12: =IFERROR(IF(AB12>6,AVERAGE(SMALL((F12,H12,J12,L12:N12,R12:R12,P12,T12:W12,Y12,AA12),{1,2,3,4,5,6})),AC12),"No race run") -> 0.02909528718
B13: Allcoat | C13: Paul | D13: M | M13: 0.03153935185 | N13: 00:43:52 | O13: 00:33:55 | P13: 0.02972016139 | Q13: 00:20:49 | R13: =(Q13*86400)*POWER((10/5),1.07)/86400 -> 0.03034944764 | S13: 00:25:51 | T13: =(S13*86400)*POWER((6.2138818/3.9),1.07)/86400 -> 0.02954998895 | U13: 00:43:28 | V13: 00:42:00 | W13: 00:41:41 | X13: 0.01371527778 | Y13: 00:41:27.829 | Z13: 01:31:31 | AA13: =(Z13*86400)*POWER((6.2138818/13.1094),1.07)/86400 -> 0.02859054843 | AB13: 10 | AC13: 0.02973053841 | AD13: 6 | AE13: =IFERROR(IF(AB13>6,AVERAGE(SMALL((F13,H13,J13,L13:N13,R13:R13,P13,T13:W13,Y13,AA13),{1,2,3,4,5,6})),AC13),"No race run") -> 0.02912807275
B14: Gray | C14: Kirsty | D14: F | E14: 0.02368055556 | F14: =(E14*86400)*POWER((6.2138818/5),1.07)/86400 -> 0.02988081091 | I14: 0.06847222222 | J14: =(I14*86400)*POWER((6.2138818/13.1094),1.07)/86400 -> 0.03080343917 | M14: 00:44:09 | N14: 00:43:21 | S14: 00:25:52 | T14: =(S14*86400)*POWER((6.2138818/3.9),1.07)/86400 -> 0.02956904117 | U14: 00:44:59 | AB14: 6 | AC14: 0.03037593435 | AD14: 6 | AE14: =IFERROR(IF(AB14>6,AVERAGE(SMALL((F14,H14,J14,L14:N14,R14:R14,P14,T14:W14,Y14,AA14),{1,2,3,4,5,6})),AC14),"No race run") -> 0.03037593435
B15: Hutt | C15: Sarah | D15: F | I15: 0.06846064815 | J15: =(I15*86400)*POWER((6.2138818/13.1094),1.07)/86400 -> 0.03079823237 | M15: 00:45:05 | Q15: 00:21:09 | R15: =(Q15*86400)*POWER((10/5),1.07)/86400 -> 0.03083542758 | S15: 00:26:25 | T15: =(S15*86400)*POWER((6.2138818/3.9),1.07)/86400 -> 0.03019776434 | U15: 00:45:03 | W15: 00:44:28 | X15: 0.0146412037 | Y15: =(X15*86400)*POWER((10/5),1.07)/86400 -> 00:44:15.783 | AB15: 7 | AC15: 0.03086312544 | AD15: 6 | AE15: =IFERROR(IF(AB15>6,AVERAGE(SMALL((F15,H15,J15,L15:N15,R15:R15,P15,T15:W15,Y15,AA15),{1,2,3,4,5,6})),AC15),"No race run") -> 0.03078900129
B16: Dobson | C16: Judith | D16: F | E16: 0.025 | F16: =(E16*86400)*POWER((6.2138818/5),1.07)/86400 -> 0.03154572413 | I16: 0.06792824074 | J16: =(I16*86400)*POWER((6.2138818/13.1094),1.07)/86400 -> 0.03055871949 | K16: 0.05140046296 | L16: =(K16*86400)*POWER((6.2138818/10),1.07)/86400 -> 0.03089338009 | O16: 00:36:14 | P16: =(O16*86400)*POWER((6.2138818/5),1.07)/86400 -> 0.03175018716 | W16: 00:45:58 | X16: 0.01552083333 | Y16: =(X16*86400)*POWER((10/5),1.07)/86400 -> 00:46:55.340 | AB16: 6 | AC16: 0.03154237709 | AD16: 6 | AE16: =IFERROR(IF(AB16>6,AVERAGE(SMALL((F16,H16,J16,L16:N16,R16:R16,P16,T16:W16,Y16,AA16),{1,2,3,4,5,6})),AC16),"No race run") -> 0.03154237709
B17: Smith | C17: Alison | D17: F | G17: 0.06861111111 | H17: =(G17*86400)*POWER((6.2138818/10),1.07)/86400 -> 0.04123754947 | I17: 0.08421296296 | J17: =(I17*86400)*POWER((6.2138818/13.1094),1.07)/86400 -> 0.03788468956 | N17: 00:54:27 | U17: 00:55:35 | W17: 00:54:46 | X17: 0.01803240741 | Y17: =(X17*86400)*POWER((10/5),1.07)/86400 -> 00:54:30.917 | Z17: 02:06:26 | AA17: =(Z17*86400)*POWER((6.2138818/13.1094),1.07)/86400 -> 0.0394987981 | AB17: 7 | AC17: 0.03870333134 | AD17: 6 | AE17: =IFERROR(IF(AB17>6,AVERAGE(SMALL((F17,H17,J17,L17:N17,R17:R17,P17,T17:W17,Y17,AA17),{1,2,3,4,5,6})),AC17),"No race run") -> 0.03828096165
B18: Stark | C18: Roger | D18: M | N18: 00:56:41 | Q18: 00:28:54 | R18: =(Q18*86400)*POWER((10/5),1.07)/86400 -> 0.04213446133 | S18: 00:35:36 | T18: =(S18*86400)*POWER((6.2138818/3.9),1.07)/86400 -> 0.04069553604 | U18: 00:58:50 | V18: 00:57:38 | X18: 0.01938657407 | Y18: =(X18*86400)*POWER((10/5),1.07)/86400 -> 00:58:36.551 | AB18: 6 | AC18: 0.0406289789 | AD18: 6 | AE18: =IFERROR(IF(AB18>6,AVERAGE(SMALL((F18,H18,J18,L18:N18,R18:R18,P18,T18:W18,Y18,AA18),{1,2,3,4,5,6})),AC18),"No race run") -> 0.0406289789
B19: Eaton | C19: Sarah | D19: F | G19: 0.07392361111 | H19: =(G19*86400)*POWER((6.2138818/10),1.07)/86400 -> 0.04443053786 | I19: 0.09478009259 | J19: =(I19*86400)*POWER((6.2138818/13.1094),1.07)/86400 -> 0.04263849956 | K19: 0.07517361111 | L19: =(K19*86400)*POWER((6.2138818/10),1.07)/86400 -> 0.04518182925 | M19: 00:58:07 | N19: 00:59:25 | O19: 00:46:05 | P19: =(O19*86400)*POWER((6.2138818/5),1.07)/86400 -> 0.04038144779 | S19: 00:35:08 | T19: =(S19*86400)*POWER((6.2138818/3.9),1.07)/86400 -> 0.04016207396 | AB19: 7 | AC19: 0.04205925126 | AD19: 6 | AE19: =IFERROR(IF(AB19>6,AVERAGE(SMALL((F19,H19,J19,L19:N19,R19:R19,P19,T19:W19,Y19,AA19),{1,2,3,4,5,6})),AC19),"No race run") -> 0.04153882159
B20: Nouillan | C20: Bill | D20: M | E20: 0.03458333333 | F20: =(E20*86400)*POWER((6.2138818/5),1.07)/86400 -> 0.04363825171 | I20: 0.09523148148 | J20: =(I20*86400)*POWER((6.2138818/13.1094),1.07)/86400 -> 0.04284156483 | K20: 0.07377314815 | L20: =(K20*86400)*POWER((6.2138818/10),1.07)/86400 -> 0.04434010464 | N20: 01:03:00 | O20: 00:49:20 | P20: =(O20*86400)*POWER((6.2138818/5),1.07)/86400 -> 0.04322932566 | S20: 00:35:35 | T20: =(S20*86400)*POWER((6.2138818/3.9),1.07)/86400 -> 0.04067648383 | AB20: 6 | AC20: 0.04307928844 | AD20: 6 | AE20: =IFERROR(IF(AB20>6,AVERAGE(SMALL((F20,H20,J20,L20:N20,R20:R20,P20,T20:W20,Y20,AA20),{1,2,3,4,5,6})),AC20),"No race run") -> 0.04307928844
B21: Laycock | C21: Andy | D21: M | M21: 00:36:50 | Q21: 00:18:20 | R21: =(Q21*86400)*POWER((10/5),1.07)/86400 -> 0.02672889704 | X21: 0.01233796296 | Y21: =(X21*86400)*POWER((10/5),1.07)/86400 -> 0.02590273113 | AB21: 3 | AC21: 0.02607011062 | AD21: 3 | AE21: =IFERROR(IF(AB21>6,AVERAGE(SMALL((F21,H21,J21,L21:N21,R21:R21,P21,T21:W21,Y21,AA21),{1,2,3,4,5,6})),AC21),"No race run") -> 0.02607011062
B22: McCulloch | C22: Angus | D22: M | M22: 00:39:00 | AB22: 1 | AC22: 0.02708333333 | AD22: 1 | AE22: =IFERROR(IF(AB22>6,AVERAGE(SMALL((F22,H22,J22,L22:N22,R22:R22,P22,T22:W22,Y22,AA22),{1,2,3,4,5,6})),AC22),"No race run") -> 0.02708333333
B23: Scott | C23: David | D23: M | K23: 01:06:35 | L23: =(K23*86400)*POWER((6.2138818/10),1.07)/86400 -> 0.02779082492 | O23: 00:30:44 | P23: =(O23*86400)*POWER((6.2138818/5),1.07)/86400 -> 0.02693070153 | Q23: 00:18:49 | R23: =(Q23*86400)*POWER((10/5),1.07)/86400 -> 0.02743356796 | S23: 00:23:21 | T23: =(S23*86400)*POWER((6.2138818/3.9),1.07)/86400 -> 0.02669215636 | AB23: 4 | AC23: 0.02721181269 | AD23: 4 | AE23: =IFERROR(IF(AB23>6,AVERAGE(SMALL((F23,H23,J23,L23:N23,R23:R23,P23,T23:W23,Y23,AA23),{1,2,3,4,5,6})),AC23),"No race run") -> 0.02721181269
B24: Johns | C24: Andrew | D24: M | M24: 00:39:55 | O24: 00:31:07 | P24: =(O24*86400)*POWER((6.2138818/5),1.07)/86400 -> 0.02726660507 | AB24: 2 | AC24: 0.02749325624 | AD24: 2 | AE24: =IFERROR(IF(AB24>6,AVERAGE(SMALL((F24,H24,J24,L24:N24,R24:R24,P24,T24:W24,Y24,AA24),{1,2,3,4,5,6})),AC24),"No race run") -> 0.02749325624
B25: Shah | C25: Rashmi | D25: M | S25: 00:24:08 | T25: =(S25*86400)*POWER((6.2138818/3.9),1.07)/86400 -> 0.02758761058 | AB25: 1 | AC25: 0.02758761058 | AD25: 1 | AE25: =IFERROR(IF(AB25>6,AVERAGE(SMALL((F25,H25,J25,L25:N25,R25:R25,P25,T25:W25,Y25,AA25),{1,2,3,4,5,6})),AC25),"No race run") -> 0.02758761058
B26: Jarron | C26: Chester | D26: M | S26: 00:24:10 | T26: =(S26*86400)*POWER((6.2138818/3.9),1.07)/86400 -> 0.02762571501 | AB26: 1 | AC26: 0.02762571501 | AD26: 1 | AE26: =IFERROR(IF(AB26>6,AVERAGE(SMALL((F26,H26,J26,L26:N26,R26:R26,P26,T26:W26,Y26,AA26),{1,2,3,4,5,6})),AC26),"No race run") -> 0.02762571501
B27: Hookham | C27: Peter | D27: M | S27: 0.01814814815 | T27: =(S27*86400)*POWER((6.2138818/3.9),1.07)/86400 -> 0.02987387665 | U27: 00:43:28 | AB27: 2 | AC27: 0.03002953092 | AD27: 2 | AE27: =IFERROR(IF(AB27>6,AVERAGE(SMALL((F27,H27,J27,L27:N27,R27:R27,P27,T27:W27,Y27,AA27),{1,2,3,4,5,6})),AC27),"No race run") -> 0.03002953092
B28: Cuthbert | C28: Keith | D28: M | M28: 00:43:26 | AB28: 1 | AC28: 0.03016203704 | AD28: 1 | AE28: =IFERROR(IF(AB28>6,AVERAGE(SMALL((F28,H28,J28,L28:N28,R28:R28,P28,T28:W28,Y28,AA28),{1,2,3,4,5,6})),AC28),"No race run") -> 0.03016203704
B29: Dobson | C29: Ben | D29: M | E29: 00:35:01 | F29: =(E29*86400)*POWER((6.2138818/5),1.07)/86400 -> 0.03068405852 | M29: 00:44:07 | O29: 00:35:20 | P29: =(O29*86400)*POWER((6.2138818/5),1.07)/86400 -> 0.03096154405 | AB29: 3 | AC29: 0.03076072555 | AD29: 3 | AE29: =IFERROR(IF(AB29>6,AVERAGE(SMALL((F29,H29,J29,L29:N29,R29:R29,P29,T29:W29,Y29,AA29),{1,2,3,4,5,6})),AC29),"No race run") -> 0.03076072555
B30: Reith | C30: Kevin | D30: M | E30: 0.02431712963 | F30: =(E30*86400)*POWER((6.2138818/5),1.07)/86400 -> 0.03068405852 | M30: 00:44:28 | N30: 00:44:41 | AB30: 3 | AC30: 0.03086459358 | AD30: 3 | AE30: =IFERROR(IF(AB30>6,AVERAGE(SMALL((F30,H30,J30,L30:N30,R30:R30,P30,T30:W30,Y30,AA30),{1,2,3,4,5,6})),AC30),"No race run") -> 0.03086459358
B31: Porter | C31: Hazel | D31: F | I31: 0.06658564815 | J31: =(I31*86400)*POWER((6.2138818/13.1094),1.07)/86400 -> 0.02995473049 | M31: 00:43:11 | O31: 00:37:34 | P31: =(O31*86400)*POWER((6.2138818/5),1.07)/86400 -> 0.03291854731 | AB31: 3 | AC31: 0.03095390124 | AD31: 3 | AE31: =IFERROR(IF(AB31>6,AVERAGE(SMALL((F31,H31,J31,L31:N31,R31:R31,P31,T31:W31,Y31,AA31),{1,2,3,4,5,6})),AC31),"No race run") -> 0.03095390124
B32: Blyth | C32: Scott | D32: M | N32: 00:46:06 | S32: 00:27:13 | T32: =(S32*86400)*POWER((6.2138818/3.9),1.07)/86400 -> 0.03111227077 | AB32: 2 | AC32: 0.03156307983 | AD32: 2 | AE32: =IFERROR(IF(AB32>6,AVERAGE(SMALL((F32,H32,J32,L32:N32,R32:R32,P32,T32:W32,Y32,AA32),{1,2,3,4,5,6})),AC32),"No race run") -> 0.03156307983
B33: Baughan | C33: Nick | D33: M | Q33: 00:21:47 | R33: =(Q33*86400)*POWER((10/5),1.07)/86400 -> 0.03175878948 | AB33: 1 | AC33: 0.03175878948 | AD33: 1 | AE33: =IFERROR(IF(AB33>6,AVERAGE(SMALL((F33,H33,J33,L33:N33,R33:R33,P33,T33:W33,Y33,AA33),{1,2,3,4,5,6})),AC33),"No race run") -> 0.03175878948
B34: Parsons | C34: Simon | D34: M | I34: 0.07068287037 | J34: =(I34*86400)*POWER((6.2138818/13.1094),1.07)/86400 -> 0.03179793831 | AB34: 1 | AC34: 0.03179793831 | AD34: 1 | AE34: =IFERROR(IF(AB34>6,AVERAGE(SMALL((F34,H34,J34,L34:N34,R34:R34,P34,T34:W34,Y34,AA34),{1,2,3,4,5,6})),AC34),"No race run") -> 0.03179793831
B35: Rae | C35: Alison | D35: F | S35: 00:28:13 | T35: =(S35*86400)*POWER((6.2138818/3.9),1.07)/86400 -> 0.0322554038 | AB35: 1 | AC35: 0.0322554038 | AD35: 1 | AE35: =IFERROR(IF(AB35>6,AVERAGE(SMALL((F35,H35,J35,L35:N35,R35:R35,P35,T35:W35,Y35,AA35),{1,2,3,4,5,6})),AC35),"No race run") -> 0.0322554038
B36: Kelly | C36: Graeme | D36: M | X36: 0.01548611111 | Y36: =(X36*86400)*POWER((10/5),1.07)/86400 -> 00:46:49.042 | AB36: 1 | AC36: 0.0325120584 | AD36: 1 | AE36: =IFERROR(IF(AB36>6,AVERAGE(SMALL((F36,H36,J36,L36:N36,R36:R36,P36,T36:W36,Y36,AA36),{1,2,3,4,5,6})),AC36),"No race run") -> 0.0325120584
B37: Parsons | C37: Vicky | D37: F | I37: 0.07229166667 | J37: =(I37*86400)*POWER((6.2138818/13.1094),1.07)/86400 -> 0.03252168375 | AB37: 1 | AC37: 0.03252168375 | AD37: 1 | AE37: =IFERROR(IF(AB37>6,AVERAGE(SMALL((F37,H37,J37,L37:N37,R37:R37,P37,T37:W37,Y37,AA37),{1,2,3,4,5,6})),AC37),"No race run") -> 0.03252168375
B38: Paterson | C38: Craig | D38: M | Q38: 00:22:24 | R38: =(Q38*86400)*POWER((10/5),1.07)/86400 -> 0.03265785238 | AB38: =COUNT(F38,H38,J38,L38:N38,R38:R38,P38,T38:V38,W38,Y38,AA38) -> 1 | AC38: =IFERROR(AVERAGE(F38,H38,J38,L38:N38,R38:R38,P38,T38:W38,Y38,AA38),"No race run") -> 0.03265785238 | AD38: =IF(COUNT(F38,H38,J38,L38,M38,N38,P38,R38,T38,U38,V38,W38,Y38)>6,6,COUNT(F38,H38,J38,L38,M38,N38,P38,R38,T38,U38,V38,W38,Y38)) -> 1 | AE38: =IFERROR(IF(AB38>6,AVERAGE(SMALL((F38,H38,J38,L38:N38,R38:R38,P38,T38:W38,Y38,AA38),{1,2,3,4,5,6})),AC38),"No race run") -> 0.03265785238
B39: Hill | C39: Maureen | D39: F | G39: 01:18:43 | H39: =(G39*86400)*POWER((6.2138818/10),1.07)/86400 -> 0.03285508538 | AB39: 1 | AC39: 0.03285508538 | AD39: 1 | AE39: =IFERROR(IF(AB39>6,AVERAGE(SMALL((F39,H39,J39,L39:N39,R39:R39,P39,T39:W39,Y39,AA39),{1,2,3,4,5,6})),AC39),"No race run") -> 0.03285508538
B40: Coutts | C40: Pippa | D40: F | G40: 01:20:56 | H40: =(G40*86400)*POWER((6.2138818/10),1.07)/86400 -> 0.03378028681 | AB40: 1 | AC40: 0.03378028681 | AD40: 1 | AE40: =IFERROR(IF(AB40>6,AVERAGE(SMALL((F40,H40,J40,L40:N40,R40:R40,P40,T40:W40,Y40,AA40),{1,2,3,4,5,6})),AC40),"No race run") -> 0.03378028681
B41: Reith | C41: Finlay | D41: M | N41: 00:48:47 | AB41: 1 | AC41: 0.03387731481 | AD41: 1 | AE41: =IFERROR(IF(AB41>6,AVERAGE(SMALL((F41,H41,J41,L41:N41,R41:R41,P41,T41:W41,Y41,AA41),{1,2,3,4,5,6})),AC41),"No race run") -> 0.03387731481
B42: Cowan | C42: Brian | D42: M | E42: 0.02565972222 | F42: =(E42*86400)*POWER((6.2138818/5),1.07)/86400 -> 0.03237818074 | I42: 0.07375 | J42: =(I42*86400)*POWER((6.2138818/13.1094),1.07)/86400 -> 0.03317774077 | N42: 00:53:35 | AB42: 3 | AC42: 0.03425552322 | AD42: 3 | AE42: =IFERROR(IF(AB42>6,AVERAGE(SMALL((F42,H42,J42,L42:N42,R42:R42,P42,T42:W42,Y42,AA42),{1,2,3,4,5,6})),AC42),"No race run") -> 0.03425552322
B43: Baughan | C43: Paul | D43: M | Q43: 00:23:33 | R43: =(Q43*86400)*POWER((10/5),1.07)/86400 -> 0.03433448319 | AB43: 1 | AC43: 0.03433448319 | AD43: 1 | AE43: =IFERROR(IF(AB43>6,AVERAGE(SMALL((F43,H43,J43,L43:N43,R43:R43,P43,T43:W43,Y43,AA43),{1,2,3,4,5,6})),AC43),"No race run") -> 0.03433448319
B44: Wilson | C44: Anne | D44: F | M44: 00:50:49 | O44: 00:38:44 | P44: =(O44*86400)*POWER((6.2138818/5),1.07)/86400 -> 0.03394086244 | W44: 00:48:46 | AB44: 3 | AC44: 0.03436531835 | AD44: 3 | AE44: =IFERROR(IF(AB44>6,AVERAGE(SMALL((F44,H44,J44,L44:N44,R44:R44,P44,T44:W44,Y44,AA44),{1,2,3,4,5,6})),AC44),"No race run") -> 0.03436531835
B45: Lopez | C45: Gill | D45: F | M45: 00:50:50 | O45: 00:38:34 | P45: =(O45*86400)*POWER((6.2138818/5),1.07)/86400 -> 0.03379481742 | AB45: 2 | AC45: 0.03454787168 | AD45: 2 | AE45: =IFERROR(IF(AB45>6,AVERAGE(SMALL((F45,H45,J45,L45:N45,R45:R45,P45,T45:W45,Y45,AA45),{1,2,3,4,5,6})),AC45),"No race run") -> 0.03454787168
B46: Paterson | C46: Scott | D46: M | I46: 0.07822916667 | J46: =(I46*86400)*POWER((6.2138818/13.1094),1.07)/86400 -> 0.03519277305 | M46: 00:48:59 | AB46: 2 | AC46: 0.03460448838 | AD46: 2 | AE46: =IFERROR(IF(AB46>6,AVERAGE(SMALL((F46,H46,J46,L46:N46,R46:R46,P46,T46:W46,Y46,AA46),{1,2,3,4,5,6})),AC46),"No race run") -> 0.03460448838
B47: Rennie | C47: Amanda | D47: F | K47: 01:22:12 | L47: =(K47*86400)*POWER((6.2138818/10),1.07)/86400 -> 0.03430897334 | M47: 00:47:58 | N47: 00:52:35 | X47: 0.01637731481 | Y47: =(X47*86400)*POWER((10/5),1.07)/86400 -> 00:49:30.698 | AB47: 4 | AC47: 0.03462961085 | AD47: 4 | AE47: =IFERROR(IF(AB47>6,AVERAGE(SMALL((F47,H47,J47,L47:N47,R47:R47,P47,T47:W47,Y47,AA47),{1,2,3,4,5,6})),AC47),"No race run") -> 0.03462961085
B48: Findlay | C48: Valerie | D48: F | G48: 0.05994212963 | H48: =(G48*86400)*POWER((6.2138818/10),1.07)/86400 -> 0.03602720457 | M48: 00:48:52 | O48: 00:39:32 | P48: =(O48*86400)*POWER((6.2138818/5),1.07)/86400 -> 0.03464187854 | U48: 00:50:57 | X48: 0.01665509259 | Y48: =(X48*86400)*POWER((10/5),1.07)/86400 -> 00:50:21.085 | AB48: 5 | AC48: 0.03499049397 | AD48: 5 | AE48: =IFERROR(IF(AB48>6,AVERAGE(SMALL((F48,H48,J48,L48:N48,R48:R48,P48,T48:W48,Y48,AA48),{1,2,3,4,5,6})),AC48),"No race run") -> 0.03499049397
B49: Grieve | C49: Wendy | D49: F | K49: 01:27:07 | L49: =(K49*86400)*POWER((6.2138818/10),1.07)/86400 -> 0.03636111185 | N49: 00:50:20 | O49: 00:38:57 | P49: =(O49*86400)*POWER((6.2138818/5),1.07)/86400 -> 0.03413072097 | X49: 0.01649305556 | Y49: =(X49*86400)*POWER((10/5),1.07)/86400 -> 00:49:51.693 | AB49: 4 | AC49: 0.03501790192 | AD49: 4 | AE49: =IFERROR(IF(AB49>6,AVERAGE(SMALL((F49,H49,J49,L49:N49,R49:R49,P49,T49:W49,Y49,AA49),{1,2,3,4,5,6})),AC49),"No race run") -> 0.03501790192
B50: Palmer | C50: Linda | D50: F | O50: 00:40:04 | P50: =(O50*86400)*POWER((6.2138818/5),1.07)/86400 -> 0.0351092226 | AB50: 1 | AC50: 0.0351092226 | AD50: 1 | AE50: =IFERROR(IF(AB50>6,AVERAGE(SMALL((F50,H50,J50,L50:N50,R50:R50,P50,T50:W50,Y50,AA50),{1,2,3,4,5,6})),AC50),"No race run") -> 0.0351092226
B51: Jubber | C51: Mike | D51: M | M51: 0.03530092593 | O51: 00:39:45 | P51: =(O51*86400)*POWER((6.2138818/5),1.07)/86400 -> 0.03483173706 | S51: 00:31:03 | T51: =(S51*86400)*POWER((6.2138818/3.9),1.07)/86400 -> 0.03549428073 | AB51: 3 | AC51: 0.03520898124 | AD51: 3 | AE51: =IFERROR(IF(AB51>6,AVERAGE(SMALL((F51,H51,J51,L51:N51,R51:R51,P51,T51:W51,Y51,AA51),{1,2,3,4,5,6})),AC51),"No race run") -> 0.03520898124
B52: Boyle | C52: John | D52: M | K52: 01:30:12 | L52: =(K52*86400)*POWER((6.2138818/10),1.07)/86400 -> 0.03764804617 | U52: 00:47:19 | AB52: 2 | AC52: 0.03525342124 | AD52: 2 | AE52: =IFERROR(IF(AB52>6,AVERAGE(SMALL((F52,H52,J52,L52:N52,R52:R52,P52,T52:W52,Y52,AA52),{1,2,3,4,5,6})),AC52),"No race run") -> 0.03525342124
B53: Bilton | C53: Geoff | D53: M | O53: 00:40:35 | P53: =(O53*86400)*POWER((6.2138818/5),1.07)/86400 -> 0.03556196216 | S53: 00:31:14 | T53: =(S53*86400)*POWER((6.2138818/3.9),1.07)/86400 -> 0.03570385512 | U53: 00:52:57 | V53: 00:51:17 | X53: 0.01746527778 | Y53: =(X53*86400)*POWER((10/5),1.07)/86400 -> 00:52:48.045 | AB53: 5 | AC53: 0.03606345269 | AD53: 5 | AE53: =IFERROR(IF(AB53>6,AVERAGE(SMALL((F53,H53,J53,L53:N53,R53:R53,P53,T53:W53,Y53,AA53),{1,2,3,4,5,6})),AC53),"No race run") -> 0.03606345269
B54: Myerscough | C54: John | D54: M | S54: 00:31:39 | T54: =(S54*86400)*POWER((6.2138818/3.9),1.07)/86400 -> 0.03618016055 | AB54: 1 | AC54: 0.03618016055 | AD54: 1 | AE54: =IFERROR(IF(AB54>6,AVERAGE(SMALL((F54,H54,J54,L54:N54,R54:R54,P54,T54:W54,Y54,AA54),{1,2,3,4,5,6})),AC54),"No race run") -> 0.03618016055
B55: Gray | C55: Duncan | D55: M | N55: 00:53:30 | S55: 00:31:21 | T55: =(S55*86400)*POWER((6.2138818/3.9),1.07)/86400 -> 0.03583722064 | AB55: 2 | AC55: 0.03649499921 | AD55: 2 | AE55: =IFERROR(IF(AB55>6,AVERAGE(SMALL((F55,H55,J55,L55:N55,R55:R55,P55,T55:W55,Y55,AA55),{1,2,3,4,5,6})),AC55),"No race run") -> 0.03649499921
B56: Hunter | C56: Neil | D56: M | N56: 00:52:11 | O56: 00:41:11 | P56: =(O56*86400)*POWER((6.2138818/5),1.07)/86400 -> 0.03608772423 | Q56: 00:25:41 | R56: =(Q56*86400)*POWER((10/5),1.07)/86400 -> 0.03744475485 | AB56: 3 | AC56: 0.03659030167 | AD56: 3 | AE56: =IFERROR(IF(AB56>6,AVERAGE(SMALL((F56,H56,J56,L56:N56,R56:R56,P56,T56:W56,Y56,AA56),{1,2,3,4,5,6})),AC56),"No race run") -> 0.03659030167
B57: Kemp | C57: Gillian | D57: F | G57: 0.06384259259 | H57: =(G57*86400)*POWER((6.2138818/10),1.07)/86400 -> 0.03837151195 | M57: 00:52:12 | AB57: 2 | AC57: 0.03731075598 | AD57: 2 | AE57: =IFERROR(IF(AB57>6,AVERAGE(SMALL((F57,H57,J57,L57:N57,R57:R57,P57,T57:W57,Y57,AA57),{1,2,3,4,5,6})),AC57),"No race run") -> 0.03731075598
B58: Malcolm | C58: Ann | D58: F | G58: 0.06290509259 | H58: =(G58*86400)*POWER((6.2138818/10),1.07)/86400 -> 0.03780804341 | AB58: 1 | AC58: 0.03780804341 | AD58: 1 | AE58: =IFERROR(IF(AB58>6,AVERAGE(SMALL((F58,H58,J58,L58:N58,R58:R58,P58,T58:W58,Y58,AA58),{1,2,3,4,5,6})),AC58),"No race run") -> 0.03780804341
B59: Houston | C59: David | D59: M | N59: 00:54:20 | O59: 00:43:39 | P59: =(O59*86400)*POWER((6.2138818/5),1.07)/86400 -> 0.03824919051 | AB59: 2 | AC59: 0.03799033599 | AD59: 2 | AE59: =IFERROR(IF(AB59>6,AVERAGE(SMALL((F59,H59,J59,L59:N59,R59:R59,P59,T59:W59,Y59,AA59),{1,2,3,4,5,6})),AC59),"No race run") -> 0.03799033599
B60: Dobson | C60: Stuart | D60: M | E60: 0.03079861111 | F60: =(E60*86400)*POWER((6.2138818/5),1.07)/86400 -> 0.03886257959 | M60: 00:54:35 | N60: 00:54:40 | O60: 00:43:31 | P60: =(O60*86400)*POWER((6.2138818/5),1.07)/86400 -> 0.03813235449 | X60: 0.01797453704 | Y60: =(X60*86400)*POWER((10/5),1.07)/86400 -> 00:54:20.420 | AB60: 5 | AC60: 0.03811986649 | AD60: 5 | AE60: =IFERROR(IF(AB60>6,AVERAGE(SMALL((F60,H60,J60,L60:N60,R60:R60,P60,T60:W60,Y60,AA60),{1,2,3,4,5,6})),AC60),"No race run") -> 0.03811986649
B61: Cuthbert | C61: Catriona | D61: F | I61: 0.08481481481 | J61: =(I61*86400)*POWER((6.2138818/13.1094),1.07)/86400 -> 0.03815544325 | AB61: 1 | AC61: 0.03815544325 | AD61: 1 | AE61: =IFERROR(IF(AB61>6,AVERAGE(SMALL((F61,H61,J61,L61:N61,R61:R61,P61,T61:W61,Y61,AA61),{1,2,3,4,5,6})),AC61),"No race run") -> 0.03815544325
B62: Robertson | C62: Alison | D62: F | M62: 00:54:50 | S62: 0.02333333333 | T62: =(S62*86400)*POWER((6.2138818/3.9),1.07)/86400 -> 0.03840926997 | AB62: 2 | AC62: 0.03824398684 | AD62: 2 | AE62: =IFERROR(IF(AB62>6,AVERAGE(SMALL((F62,H62,J62,L62:N62,R62:R62,P62,T62:W62,Y62,AA62),{1,2,3,4,5,6})),AC62),"No race run") -> 0.03824398684
B63: Houston | C63: Alison | D63: F | N63: 00:55:21 | O63: 00:45:11 | P63: =(O63*86400)*POWER((6.2138818/5),1.07)/86400 -> 0.03959280468 | AB63: 2 | AC63: 0.03901515234 | AD63: 2 | AE63: =IFERROR(IF(AB63>6,AVERAGE(SMALL((F63,H63,J63,L63:N63,R63:R63,P63,T63:W63,Y63,AA63),{1,2,3,4,5,6})),AC63),"No race run") -> 0.03901515234
B64: Macintyre | C64: Anne | D64: F | G64: 0.06671296296 | H64: =(G64*86400)*POWER((6.2138818/10),1.07)/86400 -> 0.04009669958 | M64: 00:56:10 | S64: 00:33:59 | T64: =(S64*86400)*POWER((6.2138818/3.9),1.07)/86400 -> 0.03884747097 | U64: 00:57:15 | W64: 00:54:13 | AB64: 5 | AC64: 0.03907124152 | AD64: 5 | AE64: =IFERROR(IF(AB64>6,AVERAGE(SMALL((F64,H64,J64,L64:N64,R64:R64,P64,T64:W64,Y64,AA64),{1,2,3,4,5,6})),AC64),"No race run") -> 0.03907124152
B65: Jackson | C65: Michelle | D65: F | M65: 00:57:20 | AB65: 1 | AC65: 0.03981481481 | AD65: 1 | AE65: =IFERROR(IF(AB65>6,AVERAGE(SMALL((F65,H65,J65,L65:N65,R65:R65,P65,T65:W65,Y65,AA65),{1,2,3,4,5,6})),AC65),"No race run") -> 0.03981481481
B66: Kemp | C66: Fiona | D66: F | M66: 01:00:05 | X66: 0.01885416667 | Y66: =(X66*86400)*POWER((10/5),1.07)/86400 -> 00:56:59.977 | AB66: 2 | AC66: 0.04065380182 | AD66: 2 | AE66: =IFERROR(IF(AB66>6,AVERAGE(SMALL((F66,H66,J66,L66:N66,R66:R66,P66,T66:W66,Y66,AA66),{1,2,3,4,5,6})),AC66),"No race run") -> 0.04065380182
B67: Lopez | C67: Hannah | D67: F | O67: 00:46:18 | P67: =(O67*86400)*POWER((6.2138818/5),1.07)/86400 -> 0.04057130631 | S67: 00:35:21 | T67: =(S67*86400)*POWER((6.2138818/3.9),1.07)/86400 -> 0.04040975278 | W67: 00:59:09 | AB67: 3 | AC67: 0.04068581599 | AD67: 3 | AE67: =IFERROR(IF(AB67>6,AVERAGE(SMALL((F67,H67,J67,L67:N67,R67:R67,P67,T67:W67,Y67,AA67),{1,2,3,4,5,6})),AC67),"No race run") -> 0.04068581599
B68: MacCalman | C68: Sandy | D68: M | S68: 00:42:52 | T68: =(S68*86400)*POWER((6.2138818/3.9),1.07)/86400 -> 0.04900230276 | AB68: 1 | AC68: 0.04900230276 | AD68: 1 | AE68: =IFERROR(IF(AB68>6,AVERAGE(SMALL((F68,H68,J68,L68:N68,R68:R68,P68,T68:W68,Y68,AA68),{1,2,3,4,5,6})),AC68),"No race run") -> 0.04900230276
B69: Carmichael | C69: Isabella | D69: F | AB69: 0 | AC69: No race run | AD69: 0 | AE69: =IFERROR(IF(AB69>6,AVERAGE(SMALL((F69,H69,J69,L69:N69,R69:R69,P69,T69:W69,Y69,AA69),{1,2,3,4,5,6})),AC69),"No race run") -> No race run
B70: Rose | C70: Julie | D70: F | AB70: =COUNT(F70,H70,J70,L70:N70,R70:R70,P70,T70:V70,W70,Y70,AA70) -> 0 | AC70: =IFERROR(AVERAGE(F70,H70,J70,L70:N70,R70:R70,P70,T70:W70,Y70,AA70),"No race run") -> No race run | AD70: =IF(COUNT(F70,H70,J70,L70,M70,N70,P70,R70,T70,U70,V70,W70,Y70)>6,6,COUNT(F70,H70,J70,L70,M70,N70,P70,R70,T70,U70,V70,W70,Y70)) -> 0 | AE70: =IFERROR(IF(AB70>6,AVERAGE(SMALL((F70,H70,J70,L70:N70,R70:R70,P70,T70:W70,Y70,AA70),{1,2,3,4,5,6})),AC70),"No race run") -> No race run
B71: Jackson | C71: Martin | D71: M | AB71: 0 | AC71: No race run | AD71: 0 | AE71: =IFERROR(IF(AB71>6,AVERAGE(SMALL((F71,H71,J71,L71:N71,R71:R71,P71,T71:W71,Y71,AA71),{1,2,3,4,5,6})),AC71),"No race run") -> No race run
B72: Alexander | C72: Denise | D72: F | AB72: 0 | AC72: No race run | AD72: 0 | AE72: =IFERROR(IF(AB72>6,AVERAGE(SMALL((F72,H72,J72,L72:N72,R72:R72,P72,T72:W72,Y72,AA72),{1,2,3,4,5,6})),AC72),"No race run") -> No race run
B73: Donnachie | C73: Gordon | D73: M | AB73: 0 | AC73: No race run | AD73: 0 | AE73: =IFERROR(IF(AB73>6,AVERAGE(SMALL((F73,H73,J73,L73:N73,R73:R73,P73,T73:W73,Y73,AA73),{1,2,3,4,5,6})),AC73),"No race run") -> No race run
B74: Robertson | C74: Neil | D74: M | AB74: 0 | AC74: No race run | AD74: 0 | AE74: =IFERROR(IF(AB74>6,AVERAGE(SMALL((F74,H74,J74,L74:N74,R74:R74,P74,T74:W74,Y74,AA74),{1,2,3,4,5,6})),AC74),"No race run") -> No race run
B75: Agnew | C75: Gillian | D75: F | AB75: 0 | AC75: No race run | AD75: 0 | AE75: =IFERROR(IF(AB75>6,AVERAGE(SMALL((F75,H75,J75,L75:N75,R75:R75,P75,T75:W75,Y75,AA75),{1,2,3,4,5,6})),AC75),"No race run") -> No race run
B76: Black | C76: Gillian | D76: F | AB76: 0 | AC76: No race run | AD76: 0 | AE76: =IFERROR(IF(AB76>6,AVERAGE(SMALL((F76,H76,J76,L76:N76,R76:R76,P76,T76:W76,Y76,AA76),{1,2,3,4,5,6})),AC76),"No race run") -> No race run
B77: Koziel | C77: Joanne | D77: F | AB77: 0 | AC77: No race run | AD77: 0 | AE77: =IFERROR(IF(AB77>6,AVERAGE(SMALL((F77,H77,J77,L77:N77,R77:R77,P77,T77:W77,Y77,AA77),{1,2,3,4,5,6})),AC77),"No race run") -> No race run
B78: Macdonald | C78: Anne | D78: F | AB78: 0 | AC78: No race run | AD78: 0 | AE78: =IFERROR(IF(AB78>6,AVERAGE(SMALL((F78,H78,J78,L78:N78,R78:R78,P78,T78:W78,Y78,AA78),{1,2,3,4,5,6})),AC78),"No race run") -> No race run
B79: Malcolm | C79: Gregor | D79: M | AB79: 0 | AC79: No race run | AD79: 0 | AE79: =IFERROR(IF(AB79>6,AVERAGE(SMALL((F79,H79,J79,L79:N79,R79:R79,P79,T79:W79,Y79,AA79),{1,2,3,4,5,6})),AC79),"No race run") -> No race run
B80: Mulhern | C80: Andrew | D80: M | AB80: 0 | AC80: No race run | AD80: 0 | AE80: =IFERROR(IF(AB80>6,AVERAGE(SMALL((F80,H80,J80,L80:N80,R80:R80,P80,T80:W80,Y80,AA80),{1,2,3,4,5,6})),AC80),"No race run") -> No race run
B81: Coutts | C81: Sarah | D81: F | AB81: 0 | AC81: No race run | AD81: 0 | AE81: =IFERROR(IF(AB81>6,AVERAGE(SMALL((F81,H81,J81,L81:N81,R81:R81,P81,T81:W81,Y81,AA81),{1,2,3,4,5,6})),AC81),"No race run") -> No race run
B82: Beveridge | C82: John | D82: M | AB82: 0 | AC82: No race run | AD82: 0 | AE82: =IFERROR(IF(AB82>6,AVERAGE(SMALL((F82,H82,J82,L82:N82,R82:R82,P82,T82:W82,Y82,AA82),{1,2,3,4,5,6})),AC82),"No race run") -> No race run
B83: Coutts | C83: Pippa | D83: F | AB83: 0 | AC83: No race run | AD83: 0 | AE83: =IFERROR(IF(AB83>6,AVERAGE(SMALL((F83,H83,J83,L83:N83,R83:R83,P83,T83:W83,Y83,AA83),{1,2,3,4,5,6})),AC83),"No race run") -> No race run
B84: Myerscough | C84: Christine | D84: F | AB84: 0 | AC84: No race run | AD84: 0 | AE84: =IFERROR(IF(AB84>6,AVERAGE(SMALL((F84,H84,J84,L84:N84,R84:R84,P84,T84:W84,Y84,AA84),{1,2,3,4,5,6})),AC84),"No race run") -> No race run
B85: Hunter | C85: Lynn | D85: F | AB85: 0 | AC85: No race run | AD85: 0 | AE85: =IFERROR(IF(AB85>6,AVERAGE(SMALL((F85,H85,J85,L85:N85,R85:R85,P85,T85:W85,Y85,AA85),{1,2,3,4,5,6})),AC85),"No race run") -> No race run
B86: Skinner | C86: Archie | D86: M | AB86: 0 | AC86: No race run | AD86: 0 | AE86: =IFERROR(IF(AB86>6,AVERAGE(SMALL((F86,H86,J86,L86:N86,R86:R86,P86,T86:W86,Y86,AA86),{1,2,3,4,5,6})),AC86),"No race run") -> No race run
B87: Hunter | C87: Morna | D87: F | AB87: 0 | AC87: No race run | AD87: 0 | AE87: =IFERROR(IF(AB87>6,AVERAGE(SMALL((F87,H87,J87,L87:N87,R87:R87,P87,T87:W87,Y87,AA87),{1,2,3,4,5,6})),AC87),"No race run") -> No race run
B88: Rogowski | C88: Andreas | D88: M | AB88: 0 | AC88: No race run | AD88: 0 | AE88: =IFERROR(IF(AB88>6,AVERAGE(SMALL((F88,H88,J88,L88:N88,R88:R88,P88,T88:W88,Y88,AA88),{1,2,3,4,5,6})),AC88),"No race run") -> No race run
B89: Robertson | C89: Struan | D89: M | AB89: 0 | AC89: No race run | AD89: 0 | AE89: =IFERROR(IF(AB89>6,AVERAGE(SMALL((F89,H89,J89,L89:N89,R89:R89,P89,T89:W89,Y89,AA89),{1,2,3,4,5,6})),AC89),"No race run") -> No race run
B90: Cafferkey | C90: Michael | D90: M | AB90: 0 | AC90: No race run | AD90: 0 | AE90: =IFERROR(IF(AB90>6,AVERAGE(SMALL((F90,H90,J90,L90:N90,R90:R90,P90,T90:W90,Y90,AA90),{1,2,3,4,5,6})),AC90),"No race run") -> No race run
B91: Smith | C91: Norman | D91: M | AB91: 0 | AC91: No race run | AD91: 0 | AE91: =IFERROR(IF(AB91>6,AVERAGE(SMALL((F91,H91,J91,L91:N91,R91:R91,P91,T91:W91,Y91,AA91),{1,2,3,4,5,6})),AC91),"No race run") -> No race run
B92: Hill | C92: Lisa | D92: F | AB92: 0 | AC92: No race run | AD92: 0 | AE92: =IFERROR(IF(AB92>6,AVERAGE(SMALL((F92,H92,J92,L92:N92,R92:R92,P92,T92:W92,Y92,AA92),{1,2,3,4,5,6})),AC92),"No race run") -> No race run
B93: Logan | C93: Keith | D93: M | AB93: 0 | AC93: No race run | AD93: 0 | AE93: =IFERROR(IF(AB93>6,AVERAGE(SMALL((F93,H93,J93,L93:N93,R93:R93,P93,T93:W93,Y93,AA93),{1,2,3,4,5,6})),AC93),"No race run") -> No race run

Sheet Sheet2

Sheet Sheet3
